[Event "Kvibergspelen 2018"]
[Site "Prioritet Serneke Arena, Krutvagen 2, Gothenburg, Sweden"]
[Date "2018.04.20"]
[Round "4.14"]
[White "Wickstrom, Tommy"]
[Black "Storme, Isak"]
[Result "*"]
[TimeControl "15 minutes + 5 seconds per move from move one (Round 1 - 4) / 90 minutes + 30 seconds per move from move one (Round 5 - 8)"]
[BlackTitle "CM"]
[WhiteFideId "1713442"]
[BlackFideId "1728113"]
[WhiteElo "1977"]
[BlackElo "2323"]

1. d4 {[%clk 00:15:05]} Nf6 {[%clk 00:15:03]} {[%emt 00:00:11]} 2. c4 {[%emt
00:57:31]} c5 3. d5 {[%emt 00:00:17]} b5 4. Qc2 {[%emt 00:00:11]} bxc4 {[%emt
00:00:13]} 5. e4 d6 {[%emt 00:00:03]} 6. Bxc4 {[%emt 00:00:02]} g6 {[%emt
00:00:02]} 7. b3 {[%emt 00:00:40]} Bg7 {[%emt 00:00:13]} 8. Bb2 {[%emt
00:00:02]} O-O {[%emt 00:00:04]} 9. Nd2 {[%emt 00:00:02]} Nbd7 {[%emt
00:00:22]} 10. f4 {[%emt 00:00:54]} Nb6 {[%emt 00:00:23]} 11. Ngf3 {[%emt
00:00:07]} e6 {[%emt 00:00:49]} 12. dxe6 {[%emt 00:00:24]} fxe6 {[%emt
00:00:41]} 13. O-O-O {[%emt 00:01:27]} Qc7 {[%emt 00:01:31]} 14. e5 {[%emt
00:01:26]} Nfd5 {[%emt 00:00:17]} 15. exd6 {[%emt 00:00:25]} Bxb2+ {[%emt
00:00:56]} 16. Qxb2 {[%emt 00:00:03]} Qxd6 {[%emt 00:00:05]} 17. g3 {[%emt
00:00:16]} Ne3 {[%emt 00:00:43]} 18. Ne4 {[%emt 00:00:31]} Nxd1 {[%emt
00:02:02]} 19. Rxd1 {[%emt 00:00:02]} Qe7 {[%emt 00:00:01]} 20. Ne5 {[%emt
00:01:35]} Bb7 {[%emt 00:00:42]} 21. Ng5 {[%emt 00:01:20]} Bd5 {[%emt
00:00:30]} 22. Bd3 {[%emt 00:01:12]} c4 {[%emt 00:01:21]} 23. Nxh7 {[%emt
00:00:30]} Qxh7 {[%emt 00:00:54]} 24. Bxg6 {[%emt 00:00:10]} Qg7 {[%emt
00:00:04]} 25. Kb1 {[%emt 00:01:24]} cxb3 {[%emt 00:00:15]} 26. axb3 {[%emt
00:00:01]} Rab8 {[%emt 00:00:29]} 27. Rc1 {[%emt 00:02:36]} Na4 {[%emt
00:00:25]} 28. Qd4 {[%emt 00:00:13]} Rxb3+ {[%emt 00:01:29]} 29. Kc2 {[%emt
00:00:27]} Rc8+ {[%emt 00:00:44]} 30. Kd2 {[%emt 00:00:01]} Rxc1 {[%emt
00:00:08]} 31. Qxa4 {[%emt 00:00:04]} Rc8 {[%emt 00:00:21]} 32. Bf7+ {[%emt
00:00:21]} Kh8 {[%emt 00:00:43]} 33. Qd7 {[%emt 00:00:27]} Rb2+ {[%emt
00:00:09]} 34. Kd3 {[%emt 00:00:11]} Rbc2 {[%emt 00:00:23]} 35. Qe7 {[%emt
00:00:15]} R8c3+ {[%emt 00:00:17]} 36. Kd4 {[%emt 00:00:01]} Rc4+ {[%emt
00:00:05]} 37. Kd3 Be4+ {[%emt 00:00:06]} 38. Ke3 {[%emt 00:00:01]} Kh7 {[%emt
00:00:05]} 39. Qh4 {[%emt 00:00:28]} Qh6 {[%emt 00:00:01]} 40. Qe7 {[%emt
00:00:01]} Kh8 {[%emt 00:00:10]} 41. Qe8 {[%emt 00:00:03]} Kg7 {[%emt
00:00:05]} 42. Qe7 {[%emt 00:00:04]} Kh8 {[%emt 00:00:05]} 43. Qe8 {[%emt
00:00:07]} Kg7 {[%emt 00:00:03]} 44. Qe7 Qf6 {[%emt 00:00:05]} 45. Qe8 {[%emt
00:00:05]} Bh7 {[%emt 00:00:05]} 46. Qd7 {[%emt 00:00:08]} R4c3+ {[%emt
00:00:01]} 47. Kd4 {[%emt 00:00:01]} Rd3# {[%emt 00:00:02]} 48. Nxd3 {[%emt
00:00:02]} Qh6 {[%emt 00:00:11]} 49. Qe8 *

[Event "Kvibergspelen 2018"]
[Site "Prioritet Serneke Arena, Krutvagen 2, Gothenburg, Sweden"]
[Date "2018.04.20"]
[Round "4.15"]
[White "Crevatin, Leo"]
[Black "Bergenwall, Henric"]
[Result "1-0"]
[TimeControl "15 minutes + 5 seconds per move from move one (Round 1 - 4) / 90 minutes + 30 seconds per move from move one (Round 5 - 8)"]
[WhiteFideId "1726307"]
[BlackFideId "1747924"]
[WhiteElo "2157"]
[BlackElo "1963"]

1. d4 {[%clk 00:15:09]} g6 {[%clk 00:15:03]} {[%emt 00:00:08]} 2. c4 {[%clk
00:15:04]} {[%emt 00:00:10]} d6 {[%clk 00:15:04]} {[%emt 00:00:04]} 3. Nc3
{[%clk 00:15:04]} {[%emt 00:00:05]} c6 {[%clk 00:15:05]} {[%emt 00:00:04]} 4.
e4 {[%clk 00:14:50]} {[%emt 00:00:18]} Qc7 {[%clk 00:15:04]} {[%emt 00:00:07]}
5. f3 {[%clk 00:14:48]} {[%emt 00:00:06]} Bg7 {[%clk 00:14:59]} {[%emt
00:00:11]} 6. Be3 {[%clk 00:14:50]} {[%emt 00:00:01]} Nf6 {[%clk 00:14:29]}
{[%emt 00:00:36]} 7. Nge2 {[%clk 00:14:44]} {[%emt 00:00:10]} O-O {[%clk
00:14:29]} {[%emt 00:00:06]} 8. Qd2 {[%clk 00:14:48]} Re8 {[%clk 00:14:26]}
{[%emt 00:00:07]} 9. g4 {[%clk 00:14:37]} {[%emt 00:00:16]} e5 {[%clk
00:14:28]} {[%emt 00:00:04]} 10. d5 {[%clk 00:14:27]} {[%emt 00:00:15]} a5
{[%clk 00:14:32]} {[%emt 00:00:02]} 11. Ng3 {[%clk 00:14:00]} {[%emt 00:00:32]}
Na6 {[%clk 00:14:27]} {[%emt 00:00:10]} 12. Be2 {[%clk 00:13:55]} {[%emt
00:00:09]} Nd7 {[%clk 00:14:24]} {[%emt 00:00:09]} 13. h4 {[%clk 00:13:47]}
{[%emt 00:00:12]} Nf8 {[%clk 00:13:34]} {[%emt 00:00:55]} 14. h5 {[%clk
00:13:45]} {[%emt 00:00:06]} Nc5 {[%clk 00:13:16]} {[%emt 00:00:24]} 15. O-O-O
{[%clk 00:13:27]} {[%emt 00:00:23]} a4 {[%clk 00:12:50]} {[%emt 00:00:32]} 16.
dxc6 {[%clk 00:13:21]} {[%emt 00:00:11]} bxc6 {[%clk 00:11:54]} {[%emt
00:01:01]} 17. Qxd6 {[%clk 00:13:22]} {[%emt 00:00:02]} Qxd6 {[%clk 00:11:53]}
{[%emt 00:00:07]} 18. Rxd6 {[%clk 00:13:25]} {[%emt 00:00:02]} Nce6 {[%clk
00:11:48]} {[%emt 00:00:11]} 19. Rxc6 {[%clk 00:13:22]} {[%emt 00:00:08]} a3
{[%clk 00:11:28]} {[%emt 00:00:25]} 20. b3 {[%clk 00:13:16]} {[%emt 00:00:11]}
Nd4 {[%clk 00:11:32]} {[%emt 00:00:02]} 21. Bxd4 {[%clk 00:13:14]} {[%emt
00:00:06]} exd4 {[%clk 00:11:35]} {[%emt 00:00:03]} 22. Nd5 {[%clk 00:12:49]}
{[%emt 00:00:29]} Re6 {[%clk 00:11:18]} {[%emt 00:00:22]} 23. Rxe6 {[%clk
00:12:17]} {[%emt 00:00:37]} Nxe6 {[%clk 00:11:20]} {[%emt 00:00:03]} 24. Kc2
{[%clk 00:10:28]} {[%emt 00:01:53]} Bb7 {[%clk 00:10:57]} {[%emt 00:00:29]} 25.
Nb4 {[%clk 00:10:19]} {[%emt 00:00:13]} Be5 {[%clk 00:10:29]} {[%emt 00:00:33]}
26. Rg1 {[%clk 00:09:43]} {[%emt 00:00:40]} Nf4 {[%clk 00:10:16]} {[%emt
00:00:19]} 27. Nd3 {[%clk 00:09:42]} {[%emt 00:00:05]} Bc7 {[%clk 00:10:10]}
{[%emt 00:00:13]} 28. b4 {[%clk 00:09:21]} {[%emt 00:00:26]} Nh3 {[%clk
00:09:54]} {[%emt 00:00:20]} 29. Rg2 {[%clk 00:09:11]} {[%emt 00:00:13]} Nf4
{[%clk 00:09:57]} {[%emt 00:00:03]} 30. Nxf4 {[%clk 00:09:13]} {[%emt
00:00:03]} Bxf4 {[%clk 00:10:01]} {[%emt 00:00:01]} 31. Bd3 {[%clk 00:08:53]}
{[%emt 00:00:25]} Kf8 {[%clk 00:09:53]} {[%emt 00:00:14]} 32. Kb3 {[%clk
00:08:51]} {[%emt 00:00:08]} Ke7 {[%clk 00:09:52]} {[%emt 00:00:07]} 33. Ne2
{[%clk 00:08:43]} {[%emt 00:00:12]} Be3 {[%clk 00:09:54]} {[%emt 00:00:03]} 34.
c5 {[%clk 00:08:09]} {[%emt 00:00:39]} Bc8 {[%clk 00:09:30]} {[%emt 00:00:29]}
35. Bc4 {[%clk 00:07:51]} {[%emt 00:00:23]} Bd7 {[%clk 00:09:12]} {[%emt
00:00:23]} 36. Bd5 {[%clk 00:07:35]} {[%emt 00:00:20]} Rb8 {[%clk 00:08:35]}
{[%emt 00:00:42]} 37. Kxa3 {[%clk 00:07:29]} {[%emt 00:00:12]} Bb5 {[%clk
00:08:14]} {[%emt 00:00:25]} 38. Kb3 {[%clk 00:06:59]} {[%emt 00:00:35]} d3
{[%clk 00:08:08]} {[%emt 00:00:12]} 39. Nc3 {[%clk 00:06:58]} {[%emt 00:00:06]}
d2 {[%clk 00:08:06]} {[%emt 00:00:07]} 40. Bc4 {[%clk 00:06:34]} {[%emt
00:00:28]} Bd7 {[%clk 00:07:46]} {[%emt 00:00:26]} 41. Nd5+ {[%clk 00:06:35]}
{[%emt 00:00:04]} 1-0

[Event "Kvibergspelen 2018"]
[Site "Prioritet Serneke Arena, Krutvagen 2, Gothenburg, Sweden"]
[Date "2018.04.20"]
[Round "4.17"]
[White "Subramanian, Aditya"]
[Black "Sjolander, Anders"]
[Result "1/2-1/2"]
[TimeControl "15 minutes + 5 seconds per move from move one (Round 1 - 4) / 90 minutes + 30 seconds per move from move one (Round 5 - 8)"]
[WhiteFideId "1718924"]
[BlackFideId "1711903"]
[WhiteElo "2128"]
[BlackElo "1977"]

1. d4 {[%clk 00:15:06]} {[%emt 00:00:03]} d5 {[%clk 00:15:10]} 2. Nf3 {[%clk
00:15:03]} {[%emt 00:00:07]} Nc6 {[%clk 00:15:14]} 3. Bf4 {[%clk 00:15:00]}
{[%emt 00:00:08]} Bf5 {[%clk 00:15:14]} {[%emt 00:00:05]} 4. e3 {[%clk
00:15:01]} {[%emt 00:00:04]} e6 {[%clk 00:15:17]} {[%emt 00:00:02]} 5. a3
{[%clk 00:14:59]} {[%emt 00:00:07]} a6 {[%clk 00:15:14]} {[%emt 00:00:09]} 6.
c4 {[%clk 00:14:40]} {[%emt 00:00:24]} Nf6 {[%clk 00:15:17]} {[%emt 00:00:02]}
7. h3 {[%clk 00:14:39]} {[%emt 00:00:05]} Bd6 {[%clk 00:15:19]} {[%emt
00:00:04]} 8. Bg5 {[%clk 00:14:42]} {[%emt 00:00:01]} O-O {[%clk 00:14:50]}
{[%emt 00:00:34]} 9. Nc3 {[%clk 00:14:39]} {[%emt 00:00:07]} Be7 {[%clk
00:14:44]} {[%emt 00:00:13]} 10. Nh4 {[%clk 00:14:01]} {[%emt 00:00:43]} Bg6
{[%clk 00:13:32]} {[%emt 00:01:18]} 11. Nxg6 {[%clk 00:14:03]} {[%emt
00:00:02]} hxg6 {[%clk 00:13:33]} {[%emt 00:00:04]} 12. Qc2 {[%clk 00:13:27]}
{[%emt 00:00:40]} Rc8 {[%clk 00:12:06]} {[%emt 00:01:33]} 13. Rd1 {[%clk
00:12:36]} {[%emt 00:00:55]} dxc4 {[%clk 00:11:53]} {[%emt 00:00:19]} 14. Bxc4
{[%clk 00:12:38]} {[%emt 00:00:03]} Nd5 {[%clk 00:11:57]} 15. Bxd5 {[%clk
00:10:45]} {[%emt 00:01:59]} exd5 {[%clk 00:11:18]} {[%emt 00:00:45]} 16. Bxe7
{[%clk 00:10:44]} {[%emt 00:00:05]} Nxe7 {[%clk 00:11:20]} {[%emt 00:00:03]} 17.
O-O {[%clk 00:10:26]} {[%emt 00:00:22]} c6 {[%clk 00:10:24]} {[%emt 00:01:03]}
18. Na4 {[%clk 00:10:08]} {[%emt 00:00:22]} Nf5 {[%clk 00:10:18]} {[%emt
00:00:11]} 19. Nc5 {[%clk 00:10:12]} {[%emt 00:00:01]} Qe7 {[%clk 00:10:07]}
{[%emt 00:00:17]} 20. Rfe1 {[%clk 00:09:43]} {[%emt 00:00:33]} Nd6 {[%clk
00:10:03]} {[%emt 00:00:09]} 21. Nd3 {[%clk 00:09:20]} {[%emt 00:00:28]} Rfe8
{[%clk 00:09:52]} {[%emt 00:00:16]} 22. Ne5 {[%clk 00:09:21]} {[%emt 00:00:04]}
Qh4 {[%clk 00:09:24]} {[%emt 00:00:33]} 23. Re2 {[%clk 00:09:08]} {[%emt
00:00:18]} Rc7 {[%clk 00:09:13]} {[%emt 00:00:16]} 24. Kh2 {[%clk 00:08:45]}
{[%emt 00:00:27]} Ne4 {[%clk 00:09:05]} {[%emt 00:00:13]} 25. g3 {[%clk
00:08:18]} {[%emt 00:00:32]} Qg5 {[%clk 00:08:37]} {[%emt 00:00:33]} 26. Kg2
{[%clk 00:08:22]} Rce7 {[%clk 00:08:17]} {[%emt 00:00:26]} 27. h4 {[%clk
00:07:54]} {[%emt 00:00:33]} Qf6 {[%clk 00:07:53]} {[%emt 00:00:29]} 28. f3
{[%clk 00:07:43]} {[%emt 00:00:16]} Nd6 {[%clk 00:07:51]} {[%emt 00:00:07]} 29.
Rh1 {[%clk 00:07:23]} {[%emt 00:00:25]} Qf5 {[%clk 00:07:33]} {[%emt 00:00:23]}
30. Qxf5 {[%clk 00:06:27]} {[%emt 00:01:01]} gxf5 {[%clk 00:07:36]} {[%emt
00:00:03]} 31. Kf2 {[%clk 00:06:27]} {[%emt 00:00:05]} f6 {[%clk 00:07:15]}
{[%emt 00:00:26]} 32. Ng6 {[%clk 00:06:17]} {[%emt 00:00:14]} Re6 {[%clk
00:07:08]} {[%emt 00:00:12]} 33. Nf4 {[%clk 00:06:19]} {[%emt 00:00:03]} R6e7
{[%clk 00:07:13]} 34. Ng6 {[%clk 00:06:22]} {[%emt 00:00:02]} Re6 {[%clk
00:07:16]} {[%emt 00:00:02]} 35. b3 {[%clk 00:06:19]} {[%emt 00:00:07]} Nb5
{[%clk 00:07:10]} {[%emt 00:00:11]} 36. Nf4 {[%clk 00:05:43]} {[%emt 00:00:40]}
R6e7 {[%clk 00:07:11]} {[%emt 00:00:05]} 37. a4 {[%clk 00:05:32]} {[%emt
00:00:16]} Nc7 {[%clk 00:06:34]} {[%emt 00:00:43]} 38. Ng6 {[%clk 00:05:29]}
{[%emt 00:00:07]} Re6 {[%clk 00:05:59]} {[%emt 00:00:41]} 39. h5 {[%clk
00:05:06]} {[%emt 00:00:28]} Kf7 {[%clk 00:05:50]} {[%emt 00:00:14]} 40. Nf4
{[%clk 00:05:01]} {[%emt 00:00:09]} R6e7 {[%clk 00:05:54]} {[%emt 00:00:02]} 41.
Ng6 {[%clk 00:04:52]} Re6 {[%clk 00:05:52]} {[%emt 00:00:21]} 42. Rh4 {[%emt
00:01:13]} Rb8 {[%emt 00:02:13]} 43. Rf4 {[%clk 00:03:02]} {[%emt 00:00:09]} b5
{[%emt 00:00:30]} 44. a5 {[%clk 00:02:53]} {[%emt 00:00:09]} b4 {[%emt
00:00:27]} 45. Rxf5 {[%clk 00:02:36]} {[%emt 00:00:03]} Nb5 {[%clk 00:04:00]}
{[%emt 00:00:04]} 46. Nf4 {[%clk 00:02:37]} {[%emt 00:00:03]} Re7 {[%emt
00:00:12]} 47. g4 {[%clk 00:02:34]} Rbe8 {[%clk 00:03:50]} {[%emt 00:00:16]} 48.
g5 {[%clk 00:02:20]} {[%emt 00:00:18]} Nd6 {[%clk 00:03:36]} {[%emt 00:00:20]}
49. g6+ {[%clk 00:01:56]} {[%emt 00:00:28]} Kg8 {[%clk 00:03:37]} {[%emt
00:00:04]} 50. Nxd5 {[%clk 00:01:59]} {[%emt 00:00:02]} Nxf5 {[%clk 00:03:35]}
{[%emt 00:00:08]} 51. Nxe7+ {[%clk 00:02:02]} {[%emt 00:00:01]} Nxe7 {[%clk
00:03:39]} {[%emt 00:00:02]} 52. Rc2 {[%clk 00:02:02]} {[%emt 00:00:04]} Rb8
{[%clk 00:03:41]} {[%emt 00:00:03]} 53. e4 {[%clk 00:01:52]} {[%emt 00:00:15]}
Rb5 {[%clk 00:03:34]} {[%emt 00:00:13]} 54. d5 {[%clk 00:01:56]} {[%emt
00:00:01]} cxd5 {[%clk 00:03:30]} {[%emt 00:00:10]} 55. Rc7 {[%clk 00:01:59]}
Kf8 {[%clk 00:03:34]} {[%emt 00:00:02]} 56. h6 {[%clk 00:01:50]} {[%emt
00:00:13]} gxh6 {[%clk 00:03:27]} {[%emt 00:00:12]} 57. g7+ {[%clk 00:01:53]}
{[%emt 00:00:01]} Kxg7 {[%clk 00:03:30]} {[%emt 00:00:02]} 58. Rxe7+ {[%clk
00:01:56]} {[%emt 00:00:02]} Kg6 {[%clk 00:03:35]} 59. Re6 {[%clk 00:01:12]}
{[%emt 00:00:50]} dxe4 {[%clk 00:03:22]} {[%emt 00:00:19]} 60. Rxa6 {[%clk
00:01:13]} {[%emt 00:00:03]} Rf5 {[%clk 00:03:26]} {[%emt 00:00:01]} 61. f4
{[%clk 00:00:52]} {[%emt 00:00:26]} Rxf4+ {[%clk 00:03:30]} {[%emt 00:00:02]}
62. Ke3 {[%clk 00:00:55]} Rf3+ {[%clk 00:03:33]} {[%emt 00:00:03]} 63. Kxe4
{[%clk 00:00:58]} {[%emt 00:00:02]} Rxb3 {[%clk 00:03:37]} {[%emt 00:00:02]} 64.
Rb6 {[%clk 00:01:01]} {[%emt 00:00:02]} Ra3 {[%clk 00:03:41]} {[%emt 00:00:01]}
65. a6 {[%clk 00:01:05]} {[%emt 00:00:01]} b3 {[%clk 00:03:45]} 66. a7 {[%clk
00:01:03]} {[%emt 00:00:07]} Ra4+ {[%clk 00:03:45]} {[%emt 00:00:05]} 67. Kf3
{[%clk 00:01:05]} {[%emt 00:00:03]} Rxa7 {[%clk 00:03:49]} {[%emt 00:00:02]} 68.
Rxb3 {[%clk 00:01:07]} {[%emt 00:00:01]} Ra4 {[%clk 00:03:54]} {[%emt
00:00:01]} 69. Rb8 {[%clk 00:01:06]} {[%emt 00:00:05]} h5 {[%clk 00:03:54]}
{[%emt 00:00:06]} 70. Rg8+ {[%clk 00:01:08]} {[%emt 00:00:02]} Kf5 {[%clk
00:03:59]} 71. Rh8 {[%clk 00:01:11]} {[%emt 00:00:03]} Ra3+ {[%clk 00:04:02]}
{[%emt 00:00:03]} 72. Kg2 {[%clk 00:01:14]} {[%emt 00:00:01]} Kg4 {[%clk
00:04:05]} {[%emt 00:00:02]} 73. Rg8+ {[%clk 00:01:15]} {[%emt 00:00:04]} Kf4
{[%clk 00:04:09]} {[%emt 00:00:01]} 74. Rh8 {[%clk 00:01:16]} {[%emt 00:00:03]}
Ra2+ {[%clk 00:04:08]} {[%emt 00:00:07]} 75. Kh3 {[%clk 00:01:14]} {[%emt
00:00:06]} f5 {[%clk 00:04:11]} {[%emt 00:00:03]} 76. Rxh5 {[%clk 00:01:07]}
{[%emt 00:00:11]} Rb2 {[%clk 00:04:02]} {[%emt 00:00:14]} 77. Rh8 {[%clk
00:00:57]} {[%emt 00:00:14]} Kf3 {[%clk 00:04:04]} {[%emt 00:00:04]} 78. Ra8
{[%clk 00:01:01]} {[%emt 00:00:02]} Rb3 {[%clk 00:04:04]} {[%emt 00:00:04]} 79.
Kh2 {[%clk 00:00:58]} {[%emt 00:00:08]} f4 {[%clk 00:04:03]} {[%emt 00:00:06]}
80. Ra7 {[%clk 00:00:55]} {[%emt 00:00:08]} Re3 {[%clk 00:03:55]} {[%emt
00:00:14]} 81. Kg1 {[%clk 00:00:47]} {[%emt 00:00:12]} Re1+ {[%clk 00:03:59]}
{[%emt 00:00:02]} 82. Kh2 {[%clk 00:00:50]} {[%emt 00:00:01]} Kf2 {[%clk
00:04:03]} {[%emt 00:00:02]} 83. Ra2+ {[%clk 00:00:54]} {[%emt 00:00:02]} Re2
{[%clk 00:04:07]} {[%emt 00:00:01]} 84. Ra3 {[%clk 00:00:58]} f3 {[%clk
00:04:11]} 85. Ra1 {[%clk 00:00:40]} {[%emt 00:00:23]} Re1 {[%clk 00:04:02]}
{[%emt 00:00:15]} 86. Ra2+ {[%clk 00:00:43]} {[%emt 00:00:02]} Re2 {[%clk
00:03:49]} {[%emt 00:00:40]} 87. Ra1 {[%clk 00:00:46]} Re8 {[%clk 00:03:09]}
{[%emt 00:00:25]} 88. Ra2+ {[%clk 00:00:49]} {[%emt 00:00:02]} Ke1 {[%clk
00:02:35]} {[%emt 00:00:39]} 89. Kg3 {[%clk 00:00:33]} {[%emt 00:00:21]} Rf8
{[%clk 00:02:23]} {[%emt 00:00:17]} 90. Ra1+ {[%clk 00:00:34]} {[%emt
00:00:04]} Ke2 {[%clk 00:02:27]} {[%emt 00:00:02]} 91. Ra2+ {[%clk 00:00:38]}
1/2-1/2

[Event "Kvibergspelen 2018"]
[Site "Prioritet Serneke Arena, Krutvagen 2, Gothenburg, Sweden"]
[Date "2018.04.20"]
[Round "4.18"]
[White "Bengtsson, Siv"]
[Black "Andersson, Kjell-Ake"]
[Result "0-1"]
[TimeControl "15 minutes + 5 seconds per move from move one (Round 1 - 4) / 90 minutes + 30 seconds per move from move one (Round 5 - 8)"]
[WhiteFideId "1701673"]
[BlackFideId "1713825"]
[WhiteElo "2125"]
[BlackElo "1921"]

1. e4 {[%clk 00:15:01]} {[%emt 00:00:07]} e6 {[%clk 00:14:59]} {[%emt
00:00:12]} 2. d4 {[%clk 00:15:03]} {[%emt 00:00:04]} d5 {[%clk 00:14:55]}
{[%emt 00:00:08]} 3. Nd2 {[%clk 00:15:05]} {[%emt 00:00:03]} Nf6 {[%clk
00:14:32]} {[%emt 00:00:28]} 4. e5 {[%clk 00:15:06]} {[%emt 00:00:04]} Nfd7
{[%clk 00:14:31]} {[%emt 00:00:05]} 5. Bd3 {[%clk 00:15:03]} {[%emt 00:00:08]}
c5 {[%clk 00:13:57]} {[%emt 00:00:40]} 6. c3 {[%clk 00:15:04]} {[%emt
00:00:04]} Nc6 {[%clk 00:13:48]} {[%emt 00:00:13]} 7. Ne2 {[%clk 00:15:06]}
{[%emt 00:00:02]} Qb6 {[%clk 00:12:50]} {[%emt 00:01:04]} 8. Nf3 {[%clk
00:15:06]} {[%emt 00:00:04]} cxd4 {[%clk 00:12:39]} {[%emt 00:00:17]} 9. cxd4
{[%clk 00:15:07]} {[%emt 00:00:05]} f6 {[%clk 00:12:40]} {[%emt 00:00:03]} 10.
exf6 {[%clk 00:15:01]} {[%emt 00:00:11]} Nxf6 {[%clk 00:12:42]} {[%emt
00:00:03]} 11. O-O {[%clk 00:14:55]} {[%emt 00:00:11]} Bd6 {[%clk 00:12:42]}
{[%emt 00:00:05]} 12. a3 {[%clk 00:13:45]} {[%emt 00:01:16]} Bd7 {[%clk
00:12:38]} {[%emt 00:00:08]} 13. Nc3 {[%clk 00:13:17]} {[%emt 00:00:33]} Nxd4
{[%clk 00:12:22]} {[%emt 00:00:21]} 14. Nxd4 {[%clk 00:13:15]} {[%emt
00:00:07]} Qxd4 {[%clk 00:12:24]} {[%emt 00:00:03]} 15. Bg6+ {[%clk 00:13:12]}
{[%emt 00:00:07]} hxg6 {[%clk 00:12:26]} {[%emt 00:00:04]} 16. Qxd4 {[%clk
00:13:14]} {[%emt 00:00:03]} Bxh2+ {[%clk 00:12:27]} {[%emt 00:00:04]} 17. Kh1
{[%clk 00:13:17]} {[%emt 00:00:03]} Be5 {[%clk 00:12:26]} {[%emt 00:00:06]} 18.
Kg1 {[%clk 00:13:19]} {[%emt 00:00:02]} Bxd4 {[%clk 00:12:23]} {[%emt
00:00:08]} 19. Ne2 {[%clk 00:13:05]} {[%emt 00:00:19]} Bb6 {[%clk 00:12:03]}
{[%emt 00:00:25]} 20. Bf4 {[%clk 00:13:07]} {[%emt 00:00:02]} Bb5 {[%clk
00:11:46]} {[%emt 00:00:22]} 21. Rfe1 {[%clk 00:13:06]} {[%emt 00:00:06]} Bxe2
{[%clk 00:11:26]} {[%emt 00:00:25]} 22. Rxe2 {[%clk 00:13:08]} {[%emt
00:00:02]} Kf7 {[%clk 00:11:26]} {[%emt 00:00:06]} 23. b4 {[%clk 00:13:01]}
{[%emt 00:00:12]} Rac8 {[%clk 00:11:19]} {[%emt 00:00:12]} 24. g3 {[%clk
00:13:03]} {[%emt 00:00:03]} Ne4 {[%clk 00:11:12]} {[%emt 00:00:12]} 25. Kg2
{[%clk 00:13:04]} {[%emt 00:00:03]} Rc4 {[%clk 00:10:24]} {[%emt 00:00:53]} 26.
f3 {[%clk 00:13:02]} {[%emt 00:00:07]} Nf6 {[%clk 00:10:23]} {[%emt 00:00:07]}
27. Bd2 {[%clk 00:13:02]} {[%emt 00:00:05]} Rc2 {[%clk 00:09:56]} {[%emt
00:00:31]} 28. Rae1 {[%clk 00:13:01]} {[%emt 00:00:05]} e5 {[%clk 00:09:12]}
{[%emt 00:00:49]} 29. a4 {[%clk 00:13:04]} {[%emt 00:00:03]} Bd4 {[%clk
00:08:56]} {[%emt 00:00:20]} 30. Be3 {[%clk 00:12:47]} {[%emt 00:00:22]} Rxe2+
{[%clk 00:08:50]} {[%emt 00:00:12]} 31. Rxe2 {[%clk 00:12:50]} {[%emt
00:00:02]} Bxe3 {[%clk 00:08:07]} {[%emt 00:00:49]} 32. Rxe3 {[%clk 00:12:53]}
{[%emt 00:00:01]} e4 {[%clk 00:07:56]} {[%emt 00:00:15]} 33. fxe4 {[%clk
00:12:55]} {[%emt 00:00:04]} dxe4 {[%clk 00:07:46]} {[%emt 00:00:15]} 34. Rc3
{[%clk 00:12:38]} {[%emt 00:00:21]} Rd8 {[%clk 00:07:17]} {[%emt 00:00:34]} 35.
b5 {[%clk 00:12:29]} {[%emt 00:00:15]} Ke6 {[%clk 00:06:57]} {[%emt 00:00:23]}
36. Kf1 {[%clk 00:12:23]} {[%emt 00:00:11]} Ke5 {[%clk 00:06:42]} {[%emt
00:00:21]} 37. Ke2 {[%clk 00:12:22]} {[%emt 00:00:06]} Nd5 {[%clk 00:06:12]}
{[%emt 00:00:35]} 38. Rc4 {[%clk 00:12:12]} {[%emt 00:00:14]} Rd7 {[%clk
00:05:57]} {[%emt 00:00:20]} 39. Rc1 {[%clk 00:12:13]} {[%emt 00:00:04]} Rf7
{[%clk 00:05:30]} {[%emt 00:00:32]} 40. Rh1 {[%clk 00:12:12]} {[%emt 00:00:05]}
Nc3+ {[%clk 00:05:22]} {[%emt 00:00:15]} 41. Kd2 {[%clk 00:12:12]} {[%emt
00:00:05]} Kd4 {[%clk 00:05:07]} {[%emt 00:00:20]} 42. Rh8 {[%clk 00:12:09]}
{[%emt 00:00:08]} e3+ {[%clk 00:04:40]} {[%emt 00:00:33]} 43. Ke1 {[%clk
00:12:11]} {[%emt 00:00:02]} Rd7 {[%clk 00:04:23]} {[%emt 00:00:23]} 44. g4
{[%clk 00:11:41]} {[%emt 00:00:35]} Nxa4 {[%clk 00:04:01]} {[%emt 00:00:28]} 45.
Ra8 {[%clk 00:11:39]} {[%emt 00:00:06]} b6 {[%clk 00:03:37]} {[%emt 00:00:30]}
46. Rh8 {[%clk 00:11:39]} {[%emt 00:00:04]} Kd3 {[%clk 00:03:31]} {[%emt
00:00:11]} 47. g5 {[%clk 00:11:35]} {[%emt 00:00:09]} Nc3 {[%clk 00:03:22]}
{[%emt 00:00:14]} 48. Rh3 {[%emt 00:00:15]} 0-1